[Event "Betsys MČR v online bleskovém šachu 2021"]
[Site "Chess.com"]
[Date "2021.04.17"]
[Round "6"]
[White "KdybyNecoTakNic"]
[Black "jachymcarostrelec4"]
[Result "1-0"]
[WhiteElo "2334"]
[BlackElo "1980"]
[TimeControl "180+1"]
[EndTime "9:58:07 PDT"]
[Termination "Uživatel KdybyNecoTakNic zvítězil na čas"]

1. Nf3 {[%clk 0:03:00.9]} 1... d5 {[%clk 0:02:58.4]} 2. g3 {[%clk 0:03:01.1]}
2... Nf6 {[%clk 0:02:57.9]} 3. Bg2 {[%clk 0:03:01.2]} 3... Bf5 {[%clk
0:02:56.4]} 4. O-O {[%clk 0:03:01.5]} 4... e6 {[%clk 0:02:56.3]} 5. d3 {[%clk
0:03:02]} 5... h6 {[%clk 0:02:56.5]} 6. Nbd2 {[%clk 0:03:02.6]} 6... Be7 {[%clk
0:02:55.7]} 7. Re1 {[%clk 0:03:02.6]} 7... O-O {[%clk 0:02:55.6]} 8. e4 {[%clk
0:03:02.7]} 8... dxe4 {[%clk 0:02:48.3]} 9. dxe4 {[%clk 0:02:55.9]} 9... Nxe4
{[%clk 0:02:31.5]} 10. Ne5 {[%clk 0:02:42.2]} 10... Nd6 {[%clk 0:02:01.6]} 11.
Nb3 {[%clk 0:02:25.8]} 11... c6 {[%clk 0:01:55.8]} 12. Bf4 {[%clk 0:02:22.4]}
12... Nb5 {[%clk 0:01:41.9]} 13. Qe2 {[%clk 0:02:05.6]} 13... Nd4 {[%clk
0:01:29.9]} 14. Nxd4 {[%clk 0:01:57.9]} 14... Qxd4 {[%clk 0:01:30.8]} 15. c3
{[%clk 0:01:54.3]} 15... Qb6 {[%clk 0:01:27.7]} 16. Rad1 {[%clk 0:01:49]} 16...
Bf6 {[%clk 0:01:12.3]} 17. Nc4 {[%clk 0:01:33.9]} 17... Qb5 {[%clk 0:01:10.1]}
18. Bf1 {[%clk 0:01:29.2]} 18... Na6 {[%clk 0:00:39.8]} 19. Qf3 {[%clk
0:01:02.6]} 19... Qa4 {[%clk 0:00:29]} 20. Nd6 {[%clk 0:00:56.7]} 20... Bg6
{[%clk 0:00:23.2]} 21. a3 {[%clk 0:00:54]} 21... Nc5 {[%clk 0:00:19.7]} 22. Bxh6
{[%clk 0:00:43.6]} 22... Bxc3 {[%clk 0:00:18]} 23. bxc3 {[%clk 0:00:35.5]} 23...
gxh6 {[%clk 0:00:17.1]} 24. Qe3 {[%clk 0:00:32.1]} 24... b6 {[%clk 0:00:16.7]}
25. Qxh6 {[%clk 0:00:31.3]} 25... Qxa3 {[%clk 0:00:15.3]} 26. Bh3 {[%clk
0:00:27.8]} 26... Qxc3 {[%clk 0:00:15.1]} 27. Re3 {[%clk 0:00:20.6]} 27... Qg7
{[%clk 0:00:14.1]} 28. Qh4 {[%clk 0:00:19.2]} 28... Rfd8 {[%clk 0:00:13.7]} 29.
Qf4 {[%clk 0:00:17.4]} 29... Nb7 {[%clk 0:00:12.3]} 30. Ree1 {[%clk 0:00:14.4]}
30... Nxd6 {[%clk 0:00:11.2]} 31. Rxd6 {[%clk 0:00:15.1]} 31... Rxd6 {[%clk
0:00:10.7]} 32. Qxd6 {[%clk 0:00:15.4]} 32... c5 {[%clk 0:00:11]} 33. Qc6 {[%clk
0:00:15.9]} 33... Qf8 {[%clk 0:00:10.7]} 34. Bg2 {[%clk 0:00:15.4]} 34... Rb8
{[%clk 0:00:10]} 35. h4 {[%clk 0:00:15.7]} 35... Qe8 {[%clk 0:00:08.1]} 36. Qf3
{[%clk 0:00:14.5]} 36... a5 {[%clk 0:00:06.8]} 37. h5 {[%clk 0:00:14.8]} 37...
Bh7 {[%clk 0:00:06.5]} 38. Qg4+ {[%clk 0:00:15]} 38... Kh8 {[%clk 0:00:06.1]}
39. Qg5 {[%clk 0:00:14.8]} 39... Qg8 {[%clk 0:00:05.5]} 40. Qe5+ {[%clk
0:00:14.9]} 40... Qg7 {[%clk 0:00:04.4]} 41. Qxb8+ {[%clk 0:00:15.6]} 41... Bg8
{[%clk 0:00:03.3]} 42. Qxb6 {[%clk 0:00:14.8]} 42... Qc3 {[%clk 0:00:04.1]} 43.
Rb1 {[%clk 0:00:13.8]} 43... Qd3 {[%clk 0:00:03.7]} 44. Qb8 {[%clk 0:00:14.1]}
44... c4 {[%clk 0:00:02.4]} 45. Qb2+ {[%clk 0:00:14.8]} 45... c3 {[%clk
0:00:02.1]} 46. Qc1 {[%clk 0:00:15.5]} 46... a4 {[%clk 0:00:01.4]} 47. Ra1
{[%clk 0:00:16.2]} 47... a3 {[%clk 0:00:01.1]} 48. Rxa3 {[%clk 0:00:15.7]} 48...
Qd2 {[%clk 0:00:01.2]} 49. Rxc3 {[%clk 0:00:15.8]} 1-0

[Event "Betsys MČR v online bleskovém šachu 2021"]
[Site "Chess.com"]
[Date "2021.04.17"]
[Round "6"]
[White "David_Mic"]
[Black "viklan"]
[Result "1-0"]
[WhiteElo "1983"]
[BlackElo "1585"]
[TimeControl "180+1"]
[EndTime "9:58:08 PDT"]
[Termination "Uživatel David_Mic zvítězil na čas"]

1. e4 {[%clk 0:03:00.9]} 1... c5 {[%clk 0:02:59.6]} 2. Nf3 {[%clk 0:03:00.1]}
2... d6 {[%clk 0:02:59.4]} 3. Bb5+ {[%clk 0:02:59.6]} 3... Nd7 {[%clk
0:02:58.2]} 4. c3 {[%clk 0:02:58.9]} 4... a6 {[%clk 0:02:54.4]} 5. Ba4 {[%clk
0:02:58.1]} 5... Nf6 {[%clk 0:02:52.4]} 6. Bc2 {[%clk 0:02:57.8]} 6... Qc7
{[%clk 0:02:47.3]} 7. O-O {[%clk 0:02:56.8]} 7... e5 {[%clk 0:02:38.3]} 8. Re1
{[%clk 0:02:56]} 8... Be7 {[%clk 0:02:37.5]} 9. d4 {[%clk 0:02:55.9]} 9... O-O
{[%clk 0:02:33.4]} 10. d5 {[%clk 0:02:55.1]} 10... b5 {[%clk 0:02:26.8]} 11.
Nbd2 {[%clk 0:02:54.7]} 11... g6 {[%clk 0:02:19.1]} 12. Nf1 {[%clk 0:02:53]}
12... Nh5 {[%clk 0:02:17.7]} 13. h3 {[%clk 0:02:36.1]} 13... Bf6 {[%clk
0:02:11.5]} 14. g4 {[%clk 0:02:30.6]} 14... Nf4 {[%clk 0:02:04.1]} 15. Kh2
{[%clk 0:02:13.8]} 15... Bg7 {[%clk 0:01:59.5]} 16. Ng3 {[%clk 0:02:09.5]} 16...
Nf6 {[%clk 0:01:37.2]} 17. Be3 {[%clk 0:02:00.1]} 17... Kh8 {[%clk 0:01:30.7]}
18. Qd2 {[%clk 0:01:57.9]} 18... Qe7 {[%clk 0:01:21.9]} 19. Bxf4 {[%clk
0:01:53.8]} 19... exf4 {[%clk 0:01:21.2]} 20. Qxf4 {[%clk 0:01:53.5]} 20... Nd7
{[%clk 0:01:21.2]} 21. Rg1 {[%clk 0:01:31.2]} 21... Ne5 {[%clk 0:01:20.1]} 22.
Nxe5 {[%clk 0:01:28.7]} 22... Bxe5 {[%clk 0:01:19.5]} 23. Qe3 {[%clk 0:01:27.6]}
23... Qh4 {[%clk 0:01:15.6]} 24. Kg2 {[%clk 0:01:16.2]} 24... Bd7 {[%clk
0:01:06.2]} 25. f4 {[%clk 0:01:14.2]} 25... Bg7 {[%clk 0:01:04.9]} 26. Rh1
{[%clk 0:01:02.4]} 26... Rae8 {[%clk 0:01:02.9]} 27. Qf3 {[%clk 0:00:51.7]}
27... b4 {[%clk 0:00:57.1]} 28. Rab1 {[%clk 0:00:37.4]} 28... bxc3 {[%clk
0:00:49.2]} 29. bxc3 {[%clk 0:00:36.4]} 29... Qf6 {[%clk 0:00:49.6]} 30. Rb7
{[%clk 0:00:31.7]} 30... Bc8 {[%clk 0:00:47.9]} 31. Rb3 {[%clk 0:00:26.1]} 31...
a5 {[%clk 0:00:39.3]} 32. Rhb1 {[%clk 0:00:21.8]} 32... Ba6 {[%clk 0:00:38.2]}
33. Rb6 {[%clk 0:00:18.3]} 33... Bc4 {[%clk 0:00:36.7]} 34. e5 {[%clk 0:00:16]}
34... Qd8 {[%clk 0:00:26.4]} 35. Rxd6 {[%clk 0:00:15.7]} 35... Qa8 {[%clk
0:00:23.7]} 36. Ba4 {[%clk 0:00:14.5]} 36... Rd8 {[%clk 0:00:22.4]} 37. Bc6
{[%clk 0:00:13.6]} 37... Qa7 {[%clk 0:00:17.5]} 38. Rxd8 {[%clk 0:00:13.1]}
38... Rxd8 {[%clk 0:00:16.8]} 39. Rb7 {[%clk 0:00:13.4]} 39... Qa6 {[%clk
0:00:15.4]} 40. Rxf7 {[%clk 0:00:12.3]} 40... a4 {[%clk 0:00:11.8]} 41. d6
{[%clk 0:00:07.9]} 41... Qxc6 {[%clk 0:00:11]} 42. Qxc6 {[%clk 0:00:06.8]} 42...
Bxf7 {[%clk 0:00:10.7]} 43. Qc7 {[%clk 0:00:07]} 43... Rf8 {[%clk 0:00:09.2]}
44. d7 {[%clk 0:00:06.2]} 44... Bd5+ {[%clk 0:00:03.5]} 45. Kf2 {[%clk
0:00:04.9]} 1-0

[Event "Betsys MČR v online bleskovém šachu 2021"]
[Site "Chess.com"]
[Date "2021.04.17"]
[Round "6"]
[White "MatejKopecky13"]
[Black "Milan_Jancek"]
[Result "0-1"]
[WhiteElo "1502"]
[BlackElo "1821"]
[TimeControl "180+1"]
[EndTime "9:58:08 PDT"]
[Termination "Uživatel Milan_Jancek zvítězil po vzdání soupeře"]

1. e4 {[%clk 0:03:00.6]} 1... e6 {[%clk 0:02:58.4]} 2. d4 {[%clk 0:02:58.7]}
2... d5 {[%clk 0:02:58.8]} 3. Nd2 {[%clk 0:02:57.7]} 3... dxe4 {[%clk
0:02:58.8]} 4. Nxe4 {[%clk 0:02:57.7]} 4... Nf6 {[%clk 0:02:59.7]} 5. Bd3 {[%clk
0:02:56.8]} 5... Be7 {[%clk 0:02:59.1]} 6. Nf3 {[%clk 0:02:54.1]} 6... Nbd7
{[%clk 0:02:59.1]} 7. Bg5 {[%clk 0:02:47.7]} 7... O-O {[%clk 0:02:50.9]} 8. O-O
{[%clk 0:02:42.4]} 8... h6 {[%clk 0:02:50.9]} 9. Be3 {[%clk 0:02:40.7]} 9... b6
{[%clk 0:02:49.8]} 10. Qd2 {[%clk 0:02:34.1]} 10... Bb7 {[%clk 0:02:47]} 11.
Nxf6+ {[%clk 0:02:33.3]} 11... Bxf6 {[%clk 0:02:34.3]} 12. Be2 {[%clk
0:02:33.3]} 12... Nc5 {[%clk 0:02:28.3]} 13. dxc5 {[%clk 0:02:25.3]} 13... Bxb2
{[%clk 0:02:15]} 14. Qxd8 {[%clk 0:02:20.3]} 14... Rfxd8 {[%clk 0:02:12]} 15.
Rab1 {[%clk 0:02:19.9]} 15... Bc3 {[%clk 0:02:11.2]} 16. Rb3 {[%clk 0:02:14.9]}
16... Bf6 {[%clk 0:02:09.4]} 17. a3 {[%clk 0:02:04]} 17... Bd5 {[%clk
0:02:08.9]} 18. Rbb1 {[%clk 0:01:56.9]} 18... Ba2 {[%clk 0:01:55.4]} 19. Rbd1
{[%clk 0:01:54.3]} 19... Bb2 {[%clk 0:01:47.5]} 20. cxb6 {[%clk 0:01:42.9]}
20... axb6 {[%clk 0:01:47.3]} 21. Rxd8+ {[%clk 0:01:42.4]} 21... Rxd8 {[%clk
0:01:47.2]} 22. a4 {[%clk 0:01:42.6]} 22... Ra8 {[%clk 0:01:38.3]} 23. Bb5
{[%clk 0:01:37.8]} 23... Bd5 {[%clk 0:01:37.7]} 24. Bd4 {[%clk 0:01:27.9]} 24...
Ba3 {[%clk 0:01:30.6]} 25. Ne5 {[%clk 0:01:22]} 25... f6 {[%clk 0:01:23.7]} 26.
Ng6 {[%clk 0:01:19.4]} 26... Kf7 {[%clk 0:01:18.7]} 27. Nf4 {[%clk 0:01:17.8]}
27... Be4 {[%clk 0:01:15.7]} 28. c4 {[%clk 0:01:10.4]} 28... e5 {[%clk
0:01:15.5]} 29. Ne2 {[%clk 0:01:02.5]} 29... exd4 {[%clk 0:01:05.8]} 30. Nxd4
{[%clk 0:01:01.9]} 30... Bc5 {[%clk 0:01:05.6]} 31. Nc6 {[%clk 0:00:58]} 31...
Kg8 {[%clk 0:00:28.6]} 32. Re1 {[%clk 0:00:52.8]} 32... Bg6 {[%clk 0:00:28.2]}
33. Ne7+ {[%clk 0:00:45.3]} 33... Kf7 {[%clk 0:00:23.4]} 34. Nxg6 {[%clk
0:00:44.7]} 34... Kxg6 {[%clk 0:00:23.5]} 35. g3 {[%clk 0:00:39.7]} 35... Rd8
{[%clk 0:00:23.3]} 36. Kg2 {[%clk 0:00:39.6]} 36... Rd2 {[%clk 0:00:22.4]} 37.
Rf1 {[%clk 0:00:38.5]} 37... Kf5 {[%clk 0:00:20.6]} 38. Bd7+ {[%clk 0:00:37]}
38... Kg6 {[%clk 0:00:18.7]} 39. Be8+ {[%clk 0:00:36.4]} 39... Kf5 {[%clk
0:00:18.1]} 40. Bb5 {[%clk 0:00:36.1]} 40... Ke5 {[%clk 0:00:18.3]} 41. Kf3
{[%clk 0:00:26.4]} 41... Kd6 {[%clk 0:00:18]} 42. Kg2 {[%clk 0:00:21.4]} 42...
c6 {[%clk 0:00:18.2]} 43. Ba6 {[%clk 0:00:20.7]} 43... Ra2 {[%clk 0:00:18]} 44.
Rd1+ {[%clk 0:00:20.5]} 44... Kc7 {[%clk 0:00:18.4]} 45. Bb5 {[%clk 0:00:17.8]}
45... cxb5 {[%clk 0:00:18.2]} 46. axb5 {[%clk 0:00:18.7]} 46... Rc2 {[%clk
0:00:17.5]} 47. Re1 {[%clk 0:00:18.6]} 47... Rxc4 {[%clk 0:00:16.8]} 48. Re8
{[%clk 0:00:17.3]} 48... Rc2 {[%clk 0:00:16.3]} 49. Kh3 {[%clk 0:00:16.2]} 49...
Rxf2 {[%clk 0:00:15.9]} 50. Rg8 {[%clk 0:00:17.1]} 50... g5 {[%clk 0:00:14.6]}
51. Rg7+ {[%clk 0:00:17.1]} 51... Kd6 {[%clk 0:00:14.5]} 52. Rh7 {[%clk
0:00:15.9]} 52... Ke6 {[%clk 0:00:14.7]} 53. Rxh6 {[%clk 0:00:16]} 53... Kf5
{[%clk 0:00:14.6]} 54. Rh8 {[%clk 0:00:16.2]} 54... g4+ {[%clk 0:00:14.2]} 0-1

[Event "Betsys MČR v online bleskovém šachu 2021"]
[Site "Chess.com"]
[Date "2021.04.17"]
[Round "6"]
[White "petrgnojek"]
[Black "JJ95"]
[Result "1-0"]
[WhiteElo "2261"]
[BlackElo "2018"]
[TimeControl "180+1"]
[EndTime "9:58:14 PDT"]
[Termination "Uživatel petrgnojek zvítězil na čas"]

1. d4 {[%clk 0:03:00.9]} 1... Nf6 {[%clk 0:03:00.2]} 2. c4 {[%clk 0:03:00.9]}
2... g6 {[%clk 0:03:00.5]} 3. f3 {[%clk 0:03:00.3]} 3... Bg7 {[%clk 0:03:00.8]}
4. e4 {[%clk 0:02:59.9]} 4... d6 {[%clk 0:03:01.1]} 5. Nc3 {[%clk 0:02:59.5]}
5... O-O {[%clk 0:03:01.1]} 6. Be3 {[%clk 0:02:59.5]} 6... c5 {[%clk 0:03:01.6]}
7. Nge2 {[%clk 0:02:58.9]} 7... Nc6 {[%clk 0:03:01]} 8. Qd2 {[%clk 0:02:58.3]}
8... a6 {[%clk 0:02:49]} 9. Rd1 {[%clk 0:02:54.7]} 9... cxd4 {[%clk 0:02:42.7]}
10. Nxd4 {[%clk 0:02:53.4]} 10... Nxd4 {[%clk 0:02:40.7]} 11. Bxd4 {[%clk
0:02:52.6]} 11... Be6 {[%clk 0:02:30.8]} 12. Be2 {[%clk 0:02:51.7]} 12... Rc8
{[%clk 0:02:26.3]} 13. b3 {[%clk 0:02:47.4]} 13... Bd7 {[%clk 0:02:13.1]} 14.
O-O {[%clk 0:02:45.3]} 14... h5 {[%clk 0:01:54.4]} 15. Rfe1 {[%clk 0:02:43.6]}
15... h4 {[%clk 0:01:52.5]} 16. Bf1 {[%clk 0:02:42]} 16... Be6 {[%clk
0:01:45.9]} 17. Nd5 {[%clk 0:02:37.5]} 17... Bxd5 {[%clk 0:01:35.3]} 18. exd5
{[%clk 0:02:38.4]} 18... Qd7 {[%clk 0:01:28.8]} 19. Re3 {[%clk 0:02:27.1]} 19...
Bh6 {[%clk 0:01:27.5]} 20. Rxe7 {[%clk 0:02:15.7]} 20... Bxd2 {[%clk 0:01:19.6]}
21. Rxd7 {[%clk 0:02:15.4]} 21... Nxd7 {[%clk 0:01:19.5]} 22. Rxd2 {[%clk
0:02:15.9]} 22... Rfe8 {[%clk 0:01:12.3]} 23. Bf2 {[%clk 0:02:13.1]} 23... g5
{[%clk 0:01:03.3]} 24. g3 {[%clk 0:02:11.4]} 24... hxg3 {[%clk 0:01:00.9]} 25.
hxg3 {[%clk 0:02:12.3]} 25... Ne5 {[%clk 0:01:01]} 26. Kg2 {[%clk 0:01:52.8]}
26... g4 {[%clk 0:00:57.1]} 27. f4 {[%clk 0:01:41.8]} 27... Nd7 {[%clk
0:00:34.3]} 28. Bd3 {[%clk 0:01:35.4]} 28... Nf6 {[%clk 0:00:25.7]} 29. Bf5
{[%clk 0:01:25]} 29... Rc7 {[%clk 0:00:20.2]} 30. Bd4 {[%clk 0:01:23.7]} 30...
Ne4 {[%clk 0:00:14.6]} 31. Rd1 {[%clk 0:01:23.3]} 31... Rce7 {[%clk 0:00:13]}
32. Rh1 {[%clk 0:01:20.4]} 32... f6 {[%clk 0:00:10.6]} 33. Bxg4 {[%clk
0:01:11.9]} 33... Kg7 {[%clk 0:00:10]} 34. Bf5 {[%clk 0:00:48.6]} 34... Nc5
{[%clk 0:00:08.9]} 35. Rh7+ {[%clk 0:00:30]} 35... Kg8 {[%clk 0:00:09.3]} 36.
Rxe7 {[%clk 0:00:30.1]} 36... Rxe7 {[%clk 0:00:10.2]} 37. Bxc5 {[%clk
0:00:15.7]} 37... dxc5 {[%clk 0:00:09.6]} 38. d6 {[%clk 0:00:16.4]} 38... Re2+
{[%clk 0:00:08.8]} 39. Kf3 {[%clk 0:00:15.8]} 39... Rd2 {[%clk 0:00:08.1]} 40.
d7 {[%clk 0:00:11.8]} 40... Kf7 {[%clk 0:00:07.4]} 41. g4 {[%clk 0:00:10.8]}
41... Ke7 {[%clk 0:00:07.4]} 42. g5 {[%clk 0:00:10.6]} 42... fxg5 {[%clk
0:00:07.4]} 43. fxg5 {[%clk 0:00:11.4]} 43... Rxa2 {[%clk 0:00:07.9]} 44. g6
{[%clk 0:00:07.2]} 44... Rd2 {[%clk 0:00:03.3]} 45. Kf4 {[%clk 0:00:02.8]} 45...
Rd1 {[%clk 0:00:02]} 46. Kg5 {[%clk 0:00:01.5]} 1-0

[Event "Betsys MČR v online bleskovém šachu 2021"]
[Site "Chess.com"]
[Date "2021.04.17"]
[Round "6"]
[White "TommyLud"]
[Black "Countryside_58"]
[Result "1-0"]
[WhiteElo "2215"]
[BlackElo "2418"]
[TimeControl "180+1"]
[EndTime "9:58:15 PDT"]
[Termination "Uživatel TommyLud zvítězil po vzdání soupeře"]

1. d4 {[%clk 0:03:00.9]} 1... d5 {[%clk 0:02:58.6]} 2. c4 {[%clk 0:03:00.8]}
2... Nc6 {[%clk 0:02:59.2]} 3. Nf3 {[%clk 0:02:59.7]} 3... e5 {[%clk 0:02:58.6]}
4. dxe5 {[%clk 0:02:58.7]} 4... Bb4+ {[%clk 0:02:57.2]} 5. Bd2 {[%clk
0:02:51.5]} 5... dxc4 {[%clk 0:02:57.3]} 6. a3 {[%clk 0:02:51.2]} 6... Ba5
{[%clk 0:02:56.5]} 7. e3 {[%clk 0:02:49.7]} 7... Be6 {[%clk 0:02:56.3]} 8. Qa4
{[%clk 0:02:41.4]} 8... Bxd2+ {[%clk 0:02:54.5]} 9. Nbxd2 {[%clk 0:02:41.8]}
9... a6 {[%clk 0:02:54.9]} 10. Nd4 {[%clk 0:02:25.1]} 10... b5 {[%clk
0:02:53.1]} 11. Nxe6 {[%clk 0:02:07.2]} 11... fxe6 {[%clk 0:02:45.4]} 12. Qd1
{[%clk 0:02:04.5]} 12... Nxe5 {[%clk 0:02:37.8]} 13. Qh5+ {[%clk 0:02:04.2]}
13... Nf7 {[%clk 0:02:34.6]} 14. Qg4 {[%clk 0:01:54.2]} 14... Qf6 {[%clk
0:02:14.3]} 15. O-O-O {[%clk 0:01:46.5]} 15... Ngh6 {[%clk 0:02:13.4]} 16. Qf3
{[%clk 0:01:39.7]} 16... O-O {[%clk 0:02:04.1]} 17. Qxf6 {[%clk 0:01:38.3]}
17... gxf6 {[%clk 0:02:02.2]} 18. Ne4 {[%clk 0:01:38.4]} 18... Ne5 {[%clk
0:01:55.5]} 19. h3 {[%clk 0:01:34.9]} 19... Rf7 {[%clk 0:01:45.8]} 20. f4 {[%clk
0:01:29.9]} 20... Nd7 {[%clk 0:01:37.3]} 21. Rxd7 {[%clk 0:01:24.4]} 21... Nf5
{[%clk 0:01:29.8]} 22. Rxf7 {[%clk 0:01:18.6]} 22... Kxf7 {[%clk 0:01:28.9]} 23.
Be2 {[%clk 0:01:17.1]} 23... Nxe3 {[%clk 0:01:27.1]} 24. Bh5+ {[%clk 0:01:17.1]}
24... Kg7 {[%clk 0:01:26.9]} 25. Re1 {[%clk 0:01:15.9]} 25... Nd5 {[%clk
0:01:24.1]} 26. g3 {[%clk 0:00:54]} 26... e5 {[%clk 0:01:13.7]} 27. fxe5 {[%clk
0:00:53.6]} 27... fxe5 {[%clk 0:01:11.4]} 28. Nc5 {[%clk 0:00:53.8]} 28... Nf6
{[%clk 0:01:02.9]} 29. Bf3 {[%clk 0:00:52.8]} 29... Re8 {[%clk 0:01:01.8]} 30.
Nxa6 {[%clk 0:00:52.5]} 30... e4 {[%clk 0:01:01.2]} 31. Bg2 {[%clk 0:00:52.7]}
31... e3 {[%clk 0:00:56.3]} 32. Nxc7 {[%clk 0:00:52]} 32... Re5 {[%clk
0:00:54.5]} 33. g4 {[%clk 0:00:50.3]} 33... h5 {[%clk 0:00:53.4]} 34. Bf3 {[%clk
0:00:45.6]} 34... hxg4 {[%clk 0:00:49.2]} 35. hxg4 {[%clk 0:00:45.9]} 35... Kg6
{[%clk 0:00:47.4]} 36. Rh1 {[%clk 0:00:40.9]} 36... Kg5 {[%clk 0:00:45.8]} 37.
Na6 {[%clk 0:00:33.7]} 37... Kf4 {[%clk 0:00:45.2]} 38. Be2 {[%clk 0:00:34]}
38... Kg3 {[%clk 0:00:41.7]} 39. Rf1 {[%clk 0:00:31.3]} 39... Nd5 {[%clk
0:00:36.5]} 40. Nb4 {[%clk 0:00:22.8]} 40... Nf4 {[%clk 0:00:30.8]} 41. Kd1
{[%clk 0:00:22.9]} 41... Nh3 {[%clk 0:00:26.5]} 42. Rf3+ {[%clk 0:00:22.4]}
42... Kg2 {[%clk 0:00:23.9]} 43. Rf5 {[%clk 0:00:22.2]} 43... Nf2+ {[%clk
0:00:23]} 44. Ke1 {[%clk 0:00:22.4]} 44... Re4 {[%clk 0:00:21.6]} 45. g5 {[%clk
0:00:18.6]} 45... Rh4 {[%clk 0:00:21.2]} 46. Bf1+ {[%clk 0:00:16.6]} 46... Kg3
{[%clk 0:00:20.9]} 47. Ke2 {[%clk 0:00:16.8]} 47... Ng4 {[%clk 0:00:20.3]} 48.
Rf3+ {[%clk 0:00:15.8]} 48... Kh2 {[%clk 0:00:20.1]} 49. Nc2 {[%clk 0:00:14.6]}
49... Kg1 {[%clk 0:00:17.7]} 50. Nxe3 {[%clk 0:00:12.5]} 50... Rh2+ {[%clk
0:00:16.7]} 51. Ke1 {[%clk 0:00:13.2]} 51... Nxe3 {[%clk 0:00:14]} 52. Rxe3
{[%clk 0:00:13.8]} 52... Rxb2 {[%clk 0:00:13.2]} 53. Rg3+ {[%clk 0:00:13.7]}
53... Kh2 {[%clk 0:00:13.3]} 54. Rg2+ {[%clk 0:00:12.1]} 54... Kh1 {[%clk
0:00:13.4]} 55. Rxb2 {[%clk 0:00:11.3]} 1-0

[Event "Betsys MČR v online bleskovém šachu 2021"]
[Site "Chess.com"]
[Date "2021.04.17"]
[Round "6"]
[White "DONSANMIGUEL"]
[Black "conysek"]
[Result "0-1"]
[WhiteElo "1816"]
[BlackElo "2114"]
[TimeControl "180+1"]
[EndTime "9:58:15 PDT"]
[Termination "Uživatel conysek zvítězil na čas"]

1. Nf3 {[%clk 0:02:57.9]} 1... g6 {[%clk 0:02:58.4]} 2. a4 {[%clk 0:02:58.8]}
2... Bg7 {[%clk 0:02:58.3]} 3. d3 {[%clk 0:02:59.7]} 3... Nf6 {[%clk 0:02:58.7]}
4. Nbd2 {[%clk 0:03:00.6]} 4... O-O {[%clk 0:02:58.8]} 5. e3 {[%clk 0:03:01.5]}
5... d5 {[%clk 0:02:58.4]} 6. Be2 {[%clk 0:03:02.4]} 6... c5 {[%clk 0:02:58.8]}
7. Nf1 {[%clk 0:03:03.3]} 7... Nc6 {[%clk 0:02:58.2]} 8. Ng3 {[%clk 0:03:04.2]}
8... e5 {[%clk 0:02:58.6]} 9. h3 {[%clk 0:03:04.7]} 9... Re8 {[%clk 0:02:49.8]}
10. Nh2 {[%clk 0:03:04]} 10... d4 {[%clk 0:02:47.7]} 11. e4 {[%clk 0:03:03.7]}
11... Be6 {[%clk 0:02:41.7]} 12. b3 {[%clk 0:03:03.7]} 12... Nd7 {[%clk
0:02:34.8]} 13. Bd2 {[%clk 0:03:01.2]} 13... b6 {[%clk 0:02:33.2]} 14. Qc1
{[%clk 0:03:01.3]} 14... Bh8 {[%clk 0:02:32.2]} 15. Ng4 {[%clk 0:02:56.6]} 15...
Ne7 {[%clk 0:02:26.4]} 16. Bg5 {[%clk 0:02:49.9]} 16... f6 {[%clk 0:02:23]} 17.
Nxf6+ {[%clk 0:02:46.1]} 17... Nxf6 {[%clk 0:02:20.8]} 18. f4 {[%clk 0:02:37.4]}
18... Nc6 {[%clk 0:02:09.3]} 19. O-O {[%clk 0:02:23.9]} 19... Rf8 {[%clk
0:02:00.4]} 20. f5 {[%clk 0:02:04.7]} 20... Bf7 {[%clk 0:01:54.8]} 21. h4 {[%clk
0:01:53.3]} 21... Qd6 {[%clk 0:01:51.6]} 22. h5 {[%clk 0:01:47.3]} 22... gxh5
{[%clk 0:01:50.1]} 23. Bh6 {[%clk 0:01:31.3]} 23... Bg7 {[%clk 0:00:53.6]} 24.
Qg5 {[%clk 0:01:28.6]} 24... Ne8 {[%clk 0:00:54.2]} 25. Bxg7 {[%clk 0:01:10]}
25... Nxg7 {[%clk 0:00:52.9]} 26. f6 {[%clk 0:01:07.6]} 26... Bg6 {[%clk
0:00:53.3]} 27. fxg7 {[%clk 0:01:02.4]} 27... Rxf1+ {[%clk 0:00:46]} 28. Rxf1
{[%clk 0:01:02.9]} 28... Qe7 {[%clk 0:00:44.7]} 29. Rf8+ {[%clk 0:00:37.5]}
29... Rxf8 {[%clk 0:00:42.6]} 30. gxf8=Q+ {[%clk 0:00:37.3]} 30... Kxf8 {[%clk
0:00:41.8]} 31. Qh6+ {[%clk 0:00:21.2]} 31... Qg7 {[%clk 0:00:40.1]} 32. Qg5
{[%clk 0:00:20.8]} 32... Qf7 {[%clk 0:00:28.4]} 33. Bxh5 {[%clk 0:00:16.8]}
33... Qf4 {[%clk 0:00:12.2]} 34. Qxf4+ {[%clk 0:00:11.2]} 34... exf4 {[%clk
0:00:12.5]} 35. Bxg6 {[%clk 0:00:10.1]} 35... hxg6 {[%clk 0:00:10]} 36. Ne2
{[%clk 0:00:11]} 36... g5 {[%clk 0:00:10]} 37. Kf2 {[%clk 0:00:11.4]} 37... Kg7
{[%clk 0:00:09.9]} 38. Ng1 {[%clk 0:00:09.8]} 38... Nb4 {[%clk 0:00:08.5]} 39.
Nf3 {[%clk 0:00:08.5]} 39... Kf6 {[%clk 0:00:07.1]} 40. Ne1 {[%clk 0:00:06.2]}
40... g4 {[%clk 0:00:05.7]} 41. Ke2 {[%clk 0:00:04.3]} 41... Ke5 {[%clk
0:00:05.3]} 42. Kd2 {[%clk 0:00:04.5]} 42... Nc6 {[%clk 0:00:04.7]} 43. c3
{[%clk 0:00:04.5]} 43... a6 {[%clk 0:00:03.8]} 44. Nc2 {[%clk 0:00:02.9]} 44...
dxc3+ {[%clk 0:00:04.1]} 45. Kxc3 {[%clk 0:00:02.6]} 45... f3 {[%clk 0:00:03.4]}
46. gxf3 {[%clk 0:00:01.6]} 46... gxf3 {[%clk 0:00:04.3]} 47. Ne3 {[%clk
0:00:01.5]} 47... f2 {[%clk 0:00:03.9]} 48. Nf1 {[%clk 0:00:01.3]} 48... Nd4
{[%clk 0:00:04]} 0-1